[Event "*** SCC Grand Prix: Titled Tuesday Blitz"]
[Site "Chess.com"]
[Date "2020.06.02"]
[Round "4"]
[White "qqwow"]
[Black "ChessAintFun"]
[Result "0-1"]
[WhiteElo "2398"]
[BlackElo "2648"]
[TimeControl "180+1"]
[EndTime "10:38:38 PDT"]
[Termination "ChessAintFun won by resignation"]

1. e4 {[%clk 0:03:00.9]} 1... c5 {[%clk 0:03:00]} 2. Nf3 {[%clk 0:02:56.1]} 2...
e6 {[%clk 0:03:00]} 3. d4 {[%clk 0:02:53.5]} 3... cxd4 {[%clk 0:03:00.9]} 4.
Nxd4 {[%clk 0:02:53.8]} 4... Nc6 {[%clk 0:03:01]} 5. Nc3 {[%clk 0:02:52.5]} 5...
Qc7 {[%clk 0:03:01.5]} 6. Be2 {[%clk 0:02:52.4]} 6... a6 {[%clk 0:03:02]} 7. O-O
{[%clk 0:02:50.9]} 7... Nf6 {[%clk 0:03:02.3]} 8. Be3 {[%clk 0:02:50.2]} 8...
Bb4 {[%clk 0:02:59.8]} 9. Na4 {[%clk 0:02:49.2]} 9... Be7 {[%clk 0:02:59.5]} 10.
Nxc6 {[%clk 0:02:48.7]} 10... bxc6 {[%clk 0:03:00.4]} 11. f4 {[%clk 0:02:35.3]}
11... d5 {[%clk 0:02:59.6]} 12. Nb6 {[%clk 0:02:14.3]} 12... Rb8 {[%clk
0:02:59.4]} 13. Nxc8 {[%clk 0:02:14.3]} 13... Qxc8 {[%clk 0:03:00.3]} 14. exd5
{[%clk 0:02:04.3]} 14... cxd5 {[%clk 0:02:47.9]} 15. Bd4 {[%clk 0:02:04.4]}
15... Bc5 {[%clk 0:02:37.8]} 16. Kh1 {[%clk 0:01:49.9]} 16... Bxd4 {[%clk
0:02:21]} 17. Qxd4 {[%clk 0:01:50.8]} 17... Qxc2 {[%clk 0:02:19.4]} 18. Bxa6
{[%clk 0:01:42.7]} 18... Rxb2 {[%clk 0:02:17.7]} 19. Rg1 {[%clk 0:01:32]} 19...
O-O {[%clk 0:01:47.5]} 20. h3 {[%clk 0:01:31.9]} 20... Rxa2 {[%clk 0:01:41]} 21.
f5 {[%clk 0:01:21.1]} 21... Ne4 {[%clk 0:01:35.9]} 22. fxe6 {[%clk 0:01:18.4]}
22... fxe6 {[%clk 0:01:36]} 23. Rxa2 {[%clk 0:01:16]} 23... Qxa2 {[%clk
0:01:35.7]} 24. Ra1 {[%clk 0:01:08.6]} 24... Qd2 {[%clk 0:01:06.3]} 25. Qe5
{[%clk 0:01:06]} 25... Nc5 {[%clk 0:00:48.7]} 26. Be2 {[%clk 0:00:49.5]} 26...
Qf4 {[%clk 0:00:45.7]} 27. Qc3 {[%clk 0:00:41.7]} 27... Ne4 {[%clk 0:00:45.9]}
28. Qc2 {[%clk 0:00:23.2]} 28... Ng3+ {[%clk 0:00:45.9]} 29. Kg1 {[%clk
0:00:23.4]} 29... Qe3+ {[%clk 0:00:46.1]} 30. Kh2 {[%clk 0:00:23.6]} 30... Nxe2
{[%clk 0:00:45.9]} 0-1

[Event "*** SCC Grand Prix: Titled Tuesday Blitz"]
[Site "Chess.com"]
[Date "2020.06.02"]
[Round "4"]
[White "Bastiandash"]
[Black "HansCoolNiemann"]
[Result "0-1"]
[WhiteElo "2118"]
[BlackElo "2813"]
[TimeControl "180+1"]
[EndTime "10:38:39 PDT"]
[Termination "HansCoolNiemann won by resignation"]

1. d4 {[%clk 0:03:00.9]} 1... Nf6 {[%clk 0:02:54.9]} 2. Nf3 {[%clk 0:03:01.8]}
2... e6 {[%clk 0:02:53.2]} 3. c3 {[%clk 0:03:02.1]} 3... b6 {[%clk 0:02:50.9]}
4. Bg5 {[%clk 0:03:02.5]} 4... Bb7 {[%clk 0:02:50.8]} 5. Nbd2 {[%clk 0:03:02.8]}
5... d5 {[%clk 0:02:50.6]} 6. e3 {[%clk 0:03:02.9]} 6... Nbd7 {[%clk 0:02:50.6]}
7. Bd3 {[%clk 0:03:03.4]} 7... h6 {[%clk 0:02:46.3]} 8. Bh4 {[%clk 0:03:03.1]}
8... Bd6 {[%clk 0:02:45.3]} 9. O-O {[%clk 0:03:02.9]} 9... Qe7 {[%clk
0:02:43.4]} 10. Qe2 {[%clk 0:03:02.1]} 10... e5 {[%clk 0:02:37.3]} 11. dxe5
{[%clk 0:03:03]} 11... Nxe5 {[%clk 0:02:37.5]} 12. Nxe5 {[%clk 0:02:59.1]} 12...
Qxe5 {[%clk 0:02:36.8]} 13. Bg3 {[%clk 0:02:58.4]} 13... Qe7 {[%clk 0:02:32.5]}
14. Bxd6 {[%clk 0:02:48.2]} 14... Qxd6 {[%clk 0:02:32]} 15. e4 {[%clk
0:02:35.7]} 15... Qe7 {[%clk 0:02:30.8]} 16. exd5 {[%clk 0:02:20.3]} 16... Qxe2
{[%clk 0:02:29.2]} 17. Bxe2 {[%clk 0:02:21.2]} 17... Bxd5 {[%clk 0:02:29.6]} 18.
Bf3 {[%clk 0:01:27.2]} 18... O-O-O {[%clk 0:02:26.2]} 19. Bxd5 {[%clk
0:01:12.9]} 19... Rxd5 {[%clk 0:02:27.1]} 20. Nf3 {[%clk 0:01:13.4]} 20... Re8
{[%clk 0:02:21.4]} 21. Rfe1 {[%clk 0:01:06.3]} 21... a5 {[%clk 0:02:14.2]} 22.
Kf1 {[%clk 0:00:59.6]} 22... a4 {[%clk 0:02:11.9]} 23. Rxe8+ {[%clk 0:00:45.9]}
23... Nxe8 {[%clk 0:02:12.8]} 24. b3 {[%clk 0:00:40.3]} 24... Nd6 {[%clk
0:02:06.7]} 25. Re1 {[%clk 0:00:23.6]} 25... axb3 {[%clk 0:02:02.8]} 26. axb3
{[%clk 0:00:24.5]} 26... Rd3 {[%clk 0:02:01.8]} 27. Rc1 {[%clk 0:00:14.3]} 27...
Ne4 {[%clk 0:02:00.4]} 28. Ne5 {[%clk 0:00:14.5]} 28... Rd5 {[%clk 0:01:58.9]}
29. Nf3 {[%clk 0:00:10]} 29... Rd3 {[%clk 0:01:54.2]} 30. Ne5 {[%clk 0:00:09.7]}
30... Rxc3 {[%clk 0:01:54]} 31. Rxc3 {[%clk 0:00:09.1]} 31... Nxc3 {[%clk
0:01:54.9]} 32. Nxf7 {[%clk 0:00:09.7]} 32... Kd7 {[%clk 0:01:55.3]} 33. Ne5+
{[%clk 0:00:09.5]} 33... Ke6 {[%clk 0:01:55.3]} 34. Nd3 {[%clk 0:00:08.5]} 34...
Kd5 {[%clk 0:01:52.3]} 35. Ke1 {[%clk 0:00:08.3]} 35... g5 {[%clk 0:01:44.5]}
36. f4 {[%clk 0:00:07.8]} 36... Kd4 {[%clk 0:01:42.7]} 37. fxg5 {[%clk
0:00:06.9]} 37... hxg5 {[%clk 0:01:43.2]} 38. Nf2 {[%clk 0:00:05.7]} 38... c5
{[%clk 0:01:42.4]} 39. Nh3 {[%clk 0:00:03.9]} 39... Ne4 {[%clk 0:01:41.8]} 40.
Ng1 {[%clk 0:00:02.9]} 40... Kc3 {[%clk 0:01:40.7]} 41. Ke2 {[%clk 0:00:03.2]}
41... Kxb3 {[%clk 0:01:40.4]} 42. Kd3 {[%clk 0:00:04.1]} 42... Nd6 {[%clk
0:01:38.4]} 43. Nf3 {[%clk 0:00:04.2]} 43... c4+ {[%clk 0:01:38.9]} 44. Kd2
{[%clk 0:00:04.7]} 44... Kb2 {[%clk 0:01:39.4]} 45. Nxg5 {[%clk 0:00:02.9]}
45... c3+ {[%clk 0:01:39.3]} 46. Kd3 {[%clk 0:00:03.3]} 46... c2 {[%clk
0:01:40.2]} 47. Nf3 {[%clk 0:00:03.1]} 47... c1=Q {[%clk 0:01:40.1]} 0-1

[Event "*** SCC Grand Prix: Titled Tuesday Blitz"]
[Site "Chess.com"]
[Date "2020.06.02"]
[Round "4"]
[White "davidkalashian"]
[Black "ChessWarrior7197"]
[Result "1/2-1/2"]
[WhiteElo "2563"]
[BlackElo "2902"]
[TimeControl "180+1"]
[EndTime "10:38:40 PDT"]
[Termination "Game drawn by repetition"]

1. d4 {[%clk 0:03:00.9]} 1... d5 {[%clk 0:02:59.2]} 2. Nf3 {[%clk 0:03:00.1]}
2... e6 {[%clk 0:02:59.4]} 3. c4 {[%clk 0:02:59.6]} 3... c5 {[%clk 0:02:59.3]}
4. cxd5 {[%clk 0:02:59.1]} 4... exd5 {[%clk 0:03:00.2]} 5. g3 {[%clk 0:02:58.7]}
5... Nc6 {[%clk 0:03:00.2]} 6. Bg2 {[%clk 0:02:58.1]} 6... cxd4 {[%clk
0:03:00.4]} 7. Nxd4 {[%clk 0:02:56.7]} 7... Bc5 {[%clk 0:03:00.6]} 8. Nb3 {[%clk
0:02:53.5]} 8... Bb6 {[%clk 0:03:00.4]} 9. O-O {[%clk 0:02:37.3]} 9... Nf6
{[%clk 0:02:59.1]} 10. Bg5 {[%clk 0:02:35.5]} 10... O-O {[%clk 0:02:57.5]} 11.
Nc3 {[%clk 0:02:33.8]} 11... Be6 {[%clk 0:02:52.9]} 12. Na4 {[%clk 0:02:08.6]}
12... h6 {[%clk 0:02:49.6]} 13. Bf4 {[%clk 0:02:06.7]} 13... d4 {[%clk
0:02:47.4]} 14. Nxb6 {[%clk 0:02:00.8]} 14... axb6 {[%clk 0:02:47.5]} 15. Bxc6
{[%clk 0:01:51.6]} 15... bxc6 {[%clk 0:02:48.4]} 16. Qxd4 {[%clk 0:01:39.5]}
16... c5 {[%clk 0:02:47.9]} 17. Qxd8 {[%clk 0:01:37.2]} 17... Rfxd8 {[%clk
0:02:48.8]} 18. Bc7 {[%clk 0:01:36.2]} 18... Rdc8 {[%clk 0:02:45.2]} 19. Be5
{[%clk 0:01:24.9]} 19... Nd7 {[%clk 0:02:35.5]} 20. Bf4 {[%clk 0:01:17.8]} 20...
b5 {[%clk 0:02:35]} 21. Rfd1 {[%clk 0:01:11.7]} 21... Nb6 {[%clk 0:02:31.8]} 22.
Be3 {[%clk 0:01:08.4]} 22... Na4 {[%clk 0:02:16.8]} 23. Rdc1 {[%clk 0:00:59.7]}
23... Bc4 {[%clk 0:02:09.6]} 24. Nxc5 {[%clk 0:00:55.4]} 24... Nxc5 {[%clk
0:01:46.3]} 25. Bxc5 {[%clk 0:00:55]} 25... Rxc5 {[%clk 0:01:38.9]} 26. b3
{[%clk 0:00:54.5]} 26... f5 {[%clk 0:01:37]} 27. bxc4 {[%clk 0:00:49.4]} 27...
bxc4 {[%clk 0:01:37.9]} 28. Rc2 {[%clk 0:00:48.7]} 28... Kf7 {[%clk 0:01:37.4]}
29. Rac1 {[%clk 0:00:48.7]} 29... Ra4 {[%clk 0:01:37.5]} 30. e3 {[%clk
0:00:47.8]} 30... Ke6 {[%clk 0:01:37.4]} 31. Kg2 {[%clk 0:00:47.3]} 31... g5
{[%clk 0:01:37.3]} 32. h4 {[%clk 0:00:47.1]} 32... g4 {[%clk 0:01:38.2]} 33. Rd2
{[%clk 0:00:44.9]} 33... Ke5 {[%clk 0:01:36.7]} 34. Rd4 {[%clk 0:00:44.8]} 34...
Rc6 {[%clk 0:01:29.2]} 35. Rc3 {[%clk 0:00:44.3]} 35... h5 {[%clk 0:01:19.6]}
36. Rc2 {[%clk 0:00:44.2]} 36... Rc5 {[%clk 0:01:18.6]} 37. Rc3 {[%clk 0:00:44]}
37... Rc6 {[%clk 0:01:18.5]} 38. Rc2 {[%clk 0:00:42.7]} 38... Rc8 {[%clk
0:01:18.1]} 39. Rc3 {[%clk 0:00:41.6]} 39... Ke6 {[%clk 0:01:10.1]} 40. Rc2
{[%clk 0:00:41.1]} 40... Ke5 {[%clk 0:01:07.7]} 41. Rc3 {[%clk 0:00:41]} 41...
Rc6 {[%clk 0:01:05.7]} 1/2-1/2

[Event "*** SCC Grand Prix: Titled Tuesday Blitz"]
[Site "Chess.com"]
[Date "2020.06.02"]
[Round "4"]
[White "VALPARAISO37"]
[Black "yonaltimur"]
[Result "1-0"]
[WhiteElo "2359"]
[BlackElo "1495"]
[TimeControl "180+1"]
[EndTime "10:38:41 PDT"]
[Termination "VALPARAISO37 won on time"]

1. d4 {[%clk 0:03:00.9]} 1... d5 {[%clk 0:02:57.1]} 2. c4 {[%clk 0:03:00.3]}
2... e6 {[%clk 0:02:56]} 3. Nc3 {[%clk 0:03:00]} 3... a6 {[%clk 0:02:54]} 4.
cxd5 {[%clk 0:02:59.3]} 4... exd5 {[%clk 0:02:52.8]} 5. Bf4 {[%clk 0:02:59]}
5... Nf6 {[%clk 0:02:51.7]} 6. e3 {[%clk 0:02:58.7]} 6... Be6 {[%clk 0:02:46.7]}
7. Nf3 {[%clk 0:02:57]} 7... Bd6 {[%clk 0:02:42.9]} 8. h3 {[%clk 0:02:56.4]}
8... Bxf4 {[%clk 0:02:38.8]} 9. exf4 {[%clk 0:02:56.7]} 9... Qd6 {[%clk
0:02:35.6]} 10. Qd2 {[%clk 0:02:55.3]} 10... Nbd7 {[%clk 0:02:28.7]} 11. Bd3
{[%clk 0:02:52.8]} 11... Nb6 {[%clk 0:02:19]} 12. O-O {[%clk 0:02:51.1]} 12...
h6 {[%clk 0:02:15.2]} 13. f5 {[%clk 0:02:47.4]} 13... Bd7 {[%clk 0:02:13.4]} 14.
Rfe1+ {[%clk 0:02:47.4]} 14... Kf8 {[%clk 0:02:07]} 15. Ne5 {[%clk 0:02:47.3]}
15... Kg8 {[%clk 0:01:59.1]} 16. Qe3 {[%clk 0:02:43.5]} 16... Re8 {[%clk
0:01:54.1]} 17. a3 {[%clk 0:02:43.3]} 17... Kh7 {[%clk 0:01:50.4]} 18. g4 {[%clk
0:02:42.4]} 18... Rhf8 {[%clk 0:01:31.7]} 19. h4 {[%clk 0:02:41.2]} 19... Nxg4
{[%clk 0:01:23.9]} 20. f6+ {[%clk 0:02:38.2]} 20... Kg8 {[%clk 0:01:06.2]} 21.
Qf4 {[%clk 0:02:35]} 21... Qxf6 {[%clk 0:00:55.8]} 22. Qg3 {[%clk 0:02:33.3]}
22... h5 {[%clk 0:00:43]} 23. f3 {[%clk 0:02:32.3]} 23... Nh6 {[%clk 0:00:38.9]}
24. b4 {[%clk 0:02:28.9]} 24... Bf5 {[%clk 0:00:37.5]} 25. Bf1 {[%clk
0:02:27.2]} 25... Be6 {[%clk 0:00:29.2]} 26. Bd3 {[%clk 0:02:25.1]} 26... Nf5
{[%clk 0:00:28.2]} 27. Bxf5 {[%clk 0:02:23.8]} 27... Bxf5 {[%clk 0:00:28.3]} 28.
a4 {[%clk 0:02:24.2]} 28... c6 {[%clk 0:00:24.5]} 29. Qf4 {[%clk 0:02:22.3]}
29... g6 {[%clk 0:00:14.7]} 30. a5 {[%clk 0:02:20.9]} 30... Nc8 {[%clk
0:00:12.6]} 31. Nd7 {[%clk 0:02:21.1]} 31... Rxe1+ {[%clk 0:00:10.9]} 32. Rxe1
{[%clk 0:02:20.6]} 32... Qg7 {[%clk 0:00:10.4]} 33. Nxf8 {[%clk 0:02:19.5]}
33... Qxf8 {[%clk 0:00:10.4]} 34. Kg2 {[%clk 0:02:05.4]} 34... Nd6 {[%clk
0:00:09.2]} 35. Re5 {[%clk 0:01:57.7]} 35... Kg7 {[%clk 0:00:09.3]} 36. Qe3
{[%clk 0:01:55]} 36... Bd7 {[%clk 0:00:08.1]} 37. Re7 {[%clk 0:01:52.6]} 37...
Be6 {[%clk 0:00:06.6]} 38. Qe5+ {[%clk 0:01:52.1]} 38... Kg8 {[%clk 0:00:05.3]}
39. Qxd6 {[%clk 0:01:52.2]} 39... Qc8 {[%clk 0:00:04.1]} 40. Kg3 {[%clk
0:01:47.5]} 40... Qf8 {[%clk 0:00:01.2]} 41. Rxe6 {[%clk 0:01:45.8]} 1-0

[Event "*** SCC Grand Prix: Titled Tuesday Blitz"]
[Site "Chess.com"]
[Date "2020.06.02"]
[Round "4"]
[White "GelmanAlexander"]
[Black "Indianlad"]
[Result "0-1"]
[WhiteElo "2559"]
[BlackElo "3019"]
[TimeControl "180+1"]
[EndTime "10:38:42 PDT"]
[Termination "Indianlad won on time"]

1. c4 {[%clk 0:03:00.9]} 1... e5 {[%clk 0:02:59.4]} 2. e3 {[%clk 0:02:59.2]}
2... Nf6 {[%clk 0:02:59.7]} 3. a3 {[%clk 0:02:59]} 3... Nc6 {[%clk 0:02:59.9]}
4. d3 {[%clk 0:02:59]} 4... d5 {[%clk 0:03:00]} 5. cxd5 {[%clk 0:02:58.9]} 5...
Nxd5 {[%clk 0:03:00.9]} 6. Nf3 {[%clk 0:02:58.9]} 6... Bd6 {[%clk 0:03:01.1]} 7.
b4 {[%clk 0:02:58.4]} 7... O-O {[%clk 0:03:00.7]} 8. Bb2 {[%clk 0:02:58.8]} 8...
Qe7 {[%clk 0:03:01.4]} 9. Nbd2 {[%clk 0:02:58.9]} 9... Bg4 {[%clk 0:02:59.5]}
10. Be2 {[%clk 0:02:58.8]} 10... Kh8 {[%clk 0:02:59.3]} 11. h3 {[%clk
0:02:54.2]} 11... Bh5 {[%clk 0:02:55.7]} 12. g4 {[%clk 0:02:50.9]} 12... Bg6
{[%clk 0:02:55.8]} 13. h4 {[%clk 0:02:45.5]} 13... h6 {[%clk 0:02:55.7]} 14. Qb3
{[%clk 0:02:39.9]} 14... Nb6 {[%clk 0:02:53.7]} 15. b5 {[%clk 0:02:32.5]} 15...
Nd8 {[%clk 0:02:51.8]} 16. h5 {[%clk 0:02:00.3]} 16... Bh7 {[%clk 0:02:51.9]}
17. g5 {[%clk 0:02:00.9]} 17... hxg5 {[%clk 0:02:46.6]} 18. h6 {[%clk
0:02:00.8]} 18... g4 {[%clk 0:02:41.1]} 19. hxg7+ {[%clk 0:01:10.1]} 19... Kxg7
{[%clk 0:02:42]} 20. Rg1 {[%clk 0:01:03.9]} 20... f5 {[%clk 0:02:41.3]} 21. d4
{[%clk 0:00:58.2]} 21... Nf7 {[%clk 0:02:34.4]} 22. a4 {[%clk 0:00:52.9]} 22...
Kh8 {[%clk 0:02:33]} 23. dxe5 {[%clk 0:00:47.5]} 23... Nxe5 {[%clk 0:02:32.8]}
24. Nd4 {[%clk 0:00:36.5]} 24... f4 {[%clk 0:02:27.2]} 25. O-O-O {[%clk
0:00:27.1]} 25... f3 {[%clk 0:02:27.1]} 26. Bf1 {[%clk 0:00:24.9]} 26... Nbd7
{[%clk 0:02:27.6]} 27. Nc4 {[%clk 0:00:21.3]} 27... Nc5 {[%clk 0:02:27.7]} 28.
Qa2 {[%clk 0:00:12.8]} 28... a6 {[%clk 0:02:25.2]} 29. b6 {[%clk 0:00:11.3]}
29... Rac8 {[%clk 0:02:25.3]} 30. Rh1 {[%clk 0:00:08.3]} 30... cxb6 {[%clk
0:02:25.7]} 31. Qb1 {[%clk 0:00:06.1]} 31... Nxa4 {[%clk 0:02:13.4]} 32. Nf5
{[%clk 0:00:03.1]} 32... Rxf5 {[%clk 0:01:48.9]} 33. Qxf5 {[%clk 0:00:04]} 33...
Rc5 {[%clk 0:01:49.5]} 34. Rxh7+ {[%clk 0:00:02.7]} 34... Qxh7 {[%clk
0:01:48.6]} 35. Bxe5+ {[%clk 0:00:03.3]} 35... Kg8 {[%clk 0:01:45.7]} 36. Qe6+
{[%clk 0:00:02]} 36... Qf7 {[%clk 0:01:45.8]} 37. Qxg4+ {[%clk 0:00:02.3]} 37...
Kf8 {[%clk 0:01:40.6]} 38. Bxd6+ {[%clk 0:00:02.7]} 38... Ke8 {[%clk 0:01:41.2]}
39. Qe4+ {[%clk 0:00:02.1]} 39... Kd7 {[%clk 0:01:40]} 40. Bxc5+ {[%clk
0:00:01.9]} 40... Kc7 {[%clk 0:01:40.9]} 41. Bd6+ {[%clk 0:00:02.1]} 41... Kc8
{[%clk 0:01:41.4]} 42. Bh3+ {[%clk 0:00:01.4]} 42... Kd8 {[%clk 0:01:42]} 43.
Qh4+ {[%clk 0:00:01.2]} 43... Qf6 {[%clk 0:01:42.4]} 0-1

[Event "*** SCC Grand Prix: Titled Tuesday Blitz"]
[Site "Chess.com"]
[Date "2020.06.02"]
[Round "4"]
[White "valeriocarnicelli"]
[Black "Logman74"]
[Result "1-0"]
[WhiteElo "2602"]
[BlackElo "2364"]
[TimeControl "180+1"]
[EndTime "10:38:42 PDT"]
[Termination "valeriocarnicelli won on time"]

1. e4 {[%clk 0:02:53]} 1... c5 {[%clk 0:02:59.1]} 2. Nf3 {[%clk 0:02:52.7]} 2...
d6 {[%clk 0:02:59.1]} 3. d4 {[%clk 0:02:52.6]} 3... cxd4 {[%clk 0:02:59.7]} 4.
Nxd4 {[%clk 0:02:53.5]} 4... Nf6 {[%clk 0:03:00]} 5. Nc3 {[%clk 0:02:51.9]} 5...
a6 {[%clk 0:03:00.2]} 6. f3 {[%clk 0:02:52]} 6... e5 {[%clk 0:02:58.7]} 7. Nb3
{[%clk 0:02:52.1]} 7... Be6 {[%clk 0:02:58.4]} 8. Be3 {[%clk 0:02:52.6]} 8...
Nbd7 {[%clk 0:02:58.4]} 9. Qd2 {[%clk 0:02:53.1]} 9... Nb6 {[%clk 0:02:57.9]}
10. O-O-O {[%clk 0:02:50.2]} 10... Be7 {[%clk 0:02:56.6]} 11. Qf2 {[%clk
0:02:48.6]} 11... Nc4 {[%clk 0:02:53.9]} 12. Bxc4 {[%clk 0:02:42.3]} 12... Bxc4
{[%clk 0:02:53.3]} 13. Na5 {[%clk 0:02:42.6]} 13... Be6 {[%clk 0:02:12.4]} 14.
Bb6 {[%clk 0:02:36.1]} 14... Qc8 {[%clk 0:02:08.6]} 15. g4 {[%clk 0:02:34.5]}
15... O-O {[%clk 0:02:07.8]} 16. Kb1 {[%clk 0:02:23.9]} 16... Nd7 {[%clk
0:01:56.1]} 17. Nd5 {[%clk 0:02:22.1]} 17... Bxd5 {[%clk 0:01:51.9]} 18. Rxd5
{[%clk 0:02:23]} 18... Nxb6 {[%clk 0:01:06.5]} 19. Qxb6 {[%clk 0:02:23.9]} 19...
Rb8 {[%clk 0:01:01.7]} 20. Rhd1 {[%clk 0:02:12]} 20... g6 {[%clk 0:01:00.2]} 21.
R1d3 {[%clk 0:02:04.2]} 21... Bd8 {[%clk 0:00:57]} 22. Qb4 {[%clk 0:02:04]}
22... Bxa5 {[%clk 0:00:55.3]} 23. Qxa5 {[%clk 0:02:03.9]} 23... Rd8 {[%clk
0:00:41.2]} 24. Rxd6 {[%clk 0:02:02.7]} 24... Rxd6 {[%clk 0:00:40.7]} 25. Rxd6
{[%clk 0:02:03.6]} 25... Qc4 {[%clk 0:00:37.2]} 26. Rd3 {[%clk 0:01:46.1]} 26...
Rc8 {[%clk 0:00:36.2]} 27. Qd2 {[%clk 0:01:41.1]} 27... Kg7 {[%clk 0:00:35.4]}
28. h4 {[%clk 0:01:39.4]} 28... Qc5 {[%clk 0:00:34.9]} 29. a3 {[%clk 0:01:25.2]}
29... Qg1+ {[%clk 0:00:33.4]} 30. Ka2 {[%clk 0:01:25.3]} 30... Qg3 {[%clk
0:00:31.1]} 31. h5 {[%clk 0:01:24.2]} 31... Rc6 {[%clk 0:00:25.5]} 32. h6+
{[%clk 0:01:23.5]} 32... Kf6 {[%clk 0:00:23.4]} 33. g5+ {[%clk 0:01:19.8]} 33...
Qxg5 {[%clk 0:00:20.9]} 34. Rd6+ {[%clk 0:01:19.5]} 34... Ke7 {[%clk 0:00:18.4]}
35. Qxg5+ {[%clk 0:01:19.3]} 1-0

[Event "*** SCC Grand Prix: Titled Tuesday Blitz"]
[Site "Chess.com"]
[Date "2020.06.02"]
[Round "4"]
[White "Abund"]
[Black "InitiatingASC"]
[Result "1-0"]
[WhiteElo "2611"]
[BlackElo "2393"]
[TimeControl "180+1"]
[EndTime "10:38:43 PDT"]
[Termination "Abund won by checkmate"]

1. d4 {[%clk 0:03:00.9]} 1... Nf6 {[%clk 0:02:59]} 2. c4 {[%clk 0:03:01.2]} 2...
e6 {[%clk 0:02:59.2]} 3. Nc3 {[%clk 0:03:01.5]} 3... b6 {[%clk 0:02:59.6]} 4. e4
{[%clk 0:03:01.2]} 4... d6 {[%clk 0:02:57.3]} 5. Bd3 {[%clk 0:02:59.3]} 5...
Nbd7 {[%clk 0:02:56]} 6. Nge2 {[%clk 0:02:51.4]} 6... c5 {[%clk 0:02:56]} 7. d5
{[%clk 0:02:48.6]} 7... e5 {[%clk 0:02:50.7]} 8. Ng3 {[%clk 0:02:44.2]} 8... g6
{[%clk 0:02:46.6]} 9. h4 {[%clk 0:02:43.8]} 9... h5 {[%clk 0:02:45.4]} 10. Bg5
{[%clk 0:02:41.7]} 10... Bg7 {[%clk 0:02:39.9]} 11. Qd2 {[%clk 0:02:39.7]} 11...
a6 {[%clk 0:02:39.5]} 12. a3 {[%clk 0:02:30.6]} 12... Qc7 {[%clk 0:02:37.2]} 13.
Rc1 {[%clk 0:02:13.3]} 13... Nf8 {[%clk 0:02:30.7]} 14. b4 {[%clk 0:02:05.7]}
14... N8h7 {[%clk 0:02:29.4]} 15. Be3 {[%clk 0:02:04.8]} 15... Ng4 {[%clk
0:02:24]} 16. Bg5 {[%clk 0:02:04.9]} 16... Nxg5 {[%clk 0:02:17.3]} 17. hxg5
{[%clk 0:02:05]} 17... f5 {[%clk 0:01:48.1]} 18. exf5 {[%clk 0:01:41.8]} 18...
gxf5 {[%clk 0:01:38.4]} 19. Bxf5 {[%clk 0:01:36.4]} 19... Kd8 {[%clk 0:01:14.8]}
20. Nce4 {[%clk 0:01:27.5]} 20... h4 {[%clk 0:01:01.6]} 21. Bxc8 {[%clk
0:01:09.6]} 21... hxg3 {[%clk 0:01:01.1]} 22. Rxh8+ {[%clk 0:01:07.1]} 22...
Bxh8 {[%clk 0:01:01.2]} 23. Bxg4 {[%clk 0:01:07.7]} 23... Qh7 {[%clk 0:01:00.7]}
24. Qe3 {[%clk 0:00:53.6]} 24... Kc7 {[%clk 0:00:56.4]} 25. fxg3 {[%clk
0:00:47.3]} 25... Rf8 {[%clk 0:00:55]} 26. Ke2 {[%clk 0:00:45]} 26... Qh2 {[%clk
0:00:50.4]} 27. Bf3 {[%clk 0:00:43.1]} 27... Bg7 {[%clk 0:00:41.9]} 28. bxc5
{[%clk 0:00:43]} 28... bxc5 {[%clk 0:00:41.4]} 29. Rb1 {[%clk 0:00:41.9]} 29...
Qh7 {[%clk 0:00:37.4]} 30. Qb3 {[%clk 0:00:39.9]} 30... Kd8 {[%clk 0:00:30.4]}
31. Qb8+ {[%clk 0:00:39]} 31... Ke7 {[%clk 0:00:30.7]} 32. Qxd6+ {[%clk
0:00:39.2]} 32... Kf7 {[%clk 0:00:29.1]} 33. Qe6# {[%clk 0:00:39]} 1-0

[Event "*** SCC Grand Prix: Titled Tuesday Blitz"]
[Site "Chess.com"]
[Date "2020.06.02"]
[Round "4"]
[White "Dynamikus"]
[Black "penguingm1"]
[Result "1-0"]
[WhiteElo "2756"]
[BlackElo "2942"]
[TimeControl "180+1"]
[EndTime "10:38:45 PDT"]
[Termination "Dynamikus won by resignation"]

1. e4 {[%clk 0:03:00.9]} 1... e5 {[%clk 0:03:00.1]} 2. f4 {[%clk 0:03:00.7]}
2... exf4 {[%clk 0:03:00.1]} 3. Bc4 {[%clk 0:02:59.6]} 3... Nf6 {[%clk 0:02:45]}
4. Nc3 {[%clk 0:02:56.8]} 4... c6 {[%clk 0:02:44.1]} 5. d4 {[%clk 0:02:54.5]}
5... d5 {[%clk 0:01:48]} 6. exd5 {[%clk 0:02:55.4]} 6... Bb4 {[%clk 0:01:13.9]}
7. Ne2 {[%clk 0:02:37.1]} 7... f3 {[%clk 0:01:06.6]} 8. gxf3 {[%clk 0:02:35]}
8... Nxd5 {[%clk 0:01:04.7]} 9. O-O {[%clk 0:02:32.2]} 9... O-O {[%clk
0:01:00.4]} 10. Nxd5 {[%clk 0:02:00.9]} 10... cxd5 {[%clk 0:01:01.3]} 11. Bb3
{[%clk 0:02:00.3]} 11... Bd6 {[%clk 0:00:38.5]} 12. Ng3 {[%clk 0:01:54.7]} 12...
Re8 {[%clk 0:00:36.5]} 13. f4 {[%clk 0:01:52.1]} 13... Nc6 {[%clk 0:00:31.2]}
14. c3 {[%clk 0:01:52.7]} 14... Ne7 {[%clk 0:00:30.9]} 15. Bc2 {[%clk
0:01:46.4]} 15... Bh3 {[%clk 0:00:27.3]} 16. Qh5 {[%clk 0:01:19.1]} 16... Bxf1
{[%clk 0:00:24]} 17. Qxh7+ {[%clk 0:01:18.7]} 17... Kf8 {[%clk 0:00:24.5]} 18.
Nh5 {[%clk 0:01:15.9]} 18... Nf5 {[%clk 0:00:14.4]} 19. Bxf5 {[%clk 0:01:13.6]}
19... Re1 {[%clk 0:00:14.5]} 20. Qxg7+ {[%clk 0:01:03.8]} 20... Ke8 {[%clk
0:00:14.1]} 21. Nf6+ {[%clk 0:01:00.3]} 21... Ke7 {[%clk 0:00:14.3]} 22. Nxd5+
{[%clk 0:00:57.9]} 22... Ke8 {[%clk 0:00:14.9]} 23. Kf2 {[%clk 0:00:39.8]} 23...
Qh4+ {[%clk 0:00:11.7]} 24. Qg3 {[%clk 0:00:39.9]} 24... Rd1 {[%clk 0:00:07.7]}
25. Qxh4 {[%clk 0:00:36.5]} 1-0